[Event "Sverigemastarklassen 2025"]
[Site "Uppsala, Sweden"]
[Date "2025.06.29"]
[Round "2.4"]
[White "Hector, Jonny"]
[Black "Hillarp-Persson, Tiger"]
[Result "1-0"]
[TimeControl "90 min for 40 move + 30 min with an increment of 30 sec starting move 1"]
[WhiteTitle "GM"]
[BlackTitle "GM"]
[WhiteFideId "1700090"]
[BlackFideId "1700812"]
[WhiteElo "2430"]
[BlackElo "2445"]

1. e4 {[%clk 01:30:52]} {[%emt 00:00:07]} c5 {[%clk 01:30:57]} {[%emt
00:00:04]} 2. Nf3 {[%clk 01:31:12]} {[%emt 00:00:09]} d6 {[%clk 01:31:21]}
{[%emt 00:00:06]} 3. d4 {[%clk 01:31:35]} {[%emt 00:00:07]} cxd4 {[%clk
01:31:47]} {[%emt 00:00:05]} 4. Nxd4 {[%clk 01:31:58]} {[%emt 00:00:06]} Nf6
{[%clk 01:32:09]} {[%emt 00:00:08]} 5. Nc3 {[%clk 01:32:21]} {[%emt 00:00:06]}
a6 {[%clk 01:32:37]} {[%emt 00:00:04]} 6. Bg5 {[%clk 01:32:20]} {[%emt
00:00:29]} Nbd7 {[%clk 01:33:01]} {[%emt 00:00:08]} 7. Qe2 {[%clk 01:31:41]}
{[%emt 00:01:08]} h6 {[%clk 01:33:00]} {[%emt 00:00:31]} 8. Bh4 {[%clk
01:30:43]} {[%emt 00:01:27]} g6 {[%clk 01:32:52]} {[%emt 00:00:40]} 9. f4
{[%clk 01:29:22]} {[%emt 00:01:50]} e5 {[%clk 01:33:07]} {[%emt 00:00:15]} 10.
fxe5 {[%clk 01:29:08]} {[%emt 00:00:43]} dxe5 {[%clk 01:33:29]} {[%emt
00:00:09]} 11. O-O-O {[%clk 01:28:44]} {[%emt 00:00:52]} Qc7 {[%clk 01:32:07]}
{[%emt 00:01:54]} 12. Nb3 {[%clk 01:28:26]} {[%emt 00:00:47]} b5 {[%clk
01:29:44]} {[%emt 00:02:53]} 13. Rxd7 {[%clk 01:28:06]} {[%emt 00:00:50]} Nxd7
{[%clk 01:29:43]} {[%emt 00:00:31]} 14. Nd5 {[%clk 01:28:19]} {[%emt 00:00:17]}
Qb8 {[%clk 00:55:59]} {[%emt 00:34:14]} 15. Qd2 {[%clk 01:28:05]} {[%emt
00:00:43]} Bb7 {[%clk 00:40:30]} {[%emt 00:16:00]} 16. Na5 {[%clk 01:27:32]}
{[%emt 00:01:04]} h5 {[%clk 00:26:10]} {[%emt 00:14:50]} 17. Nxb7 {[%clk
01:20:46]} {[%emt 00:07:15]} Qxb7 {[%clk 00:26:05]} {[%emt 00:00:35]} 18. Be2
{[%clk 01:09:03]} {[%emt 00:12:13]} Rc8 {[%clk 00:17:37]} {[%emt 00:08:59]} 19.
Kb1 {[%clk 01:02:50]} {[%emt 00:06:42]} Qc6 {[%clk 00:13:06]} {[%emt 00:05:01]}
20. Rf1 {[%clk 00:50:56]} {[%emt 00:12:23]} Qd6 {[%clk 00:07:43]} {[%emt
00:05:55]} 21. Qa5 {[%clk 00:40:26]} {[%emt 00:10:59]} Bg7 {[%clk 00:06:47]}
{[%emt 00:01:26]} 22. a4 {[%clk 00:37:12]} {[%emt 00:03:43]} Qc5 {[%clk
00:02:25]} {[%emt 00:04:54]} 23. Bd3 {[%clk 00:34:57]} {[%emt 00:02:44]} O-O
{[%clk 00:00:59]} {[%emt 00:01:57]} 24. Ne7+ {[%clk 00:30:45]} {[%emt
00:04:41]} Kh8 {[%clk 00:00:36]} {[%emt 00:00:54]} 25. Nxc8 {[%clk 00:30:39]}
{[%emt 00:00:36]} Qxc8 {[%clk 00:00:44]} {[%emt 00:00:22]} 26. axb5 {[%clk
00:30:29]} {[%emt 00:00:39]} axb5 {[%clk 00:00:46]} {[%emt 00:00:29]} 27. Qxb5
{[%clk 00:30:28]} {[%emt 00:00:29]} f6 {[%clk 00:00:53]} {[%emt 00:00:23]} 28.
Bc4 {[%clk 00:23:43]} {[%emt 00:07:14]} Nc5 {[%clk 00:00:36]} {[%emt 00:00:48]}
29. Bd5 {[%clk 00:23:34]} {[%emt 00:00:39]} Qg4 {[%clk 00:00:36]} {[%emt
00:00:31]} 30. Bxf6 {[%clk 00:22:23]} {[%emt 00:01:39]} Rxf6 {[%clk 00:00:36]}
{[%emt 00:00:32]} 31. Rxf6 {[%clk 00:22:30]} {[%emt 00:00:22]} Bxf6 {[%clk
00:00:55]} {[%emt 00:00:11]} 32. Qxc5 {[%clk 00:22:16]} {[%emt 00:00:44]} Kg7
{[%clk 00:01:15]} {[%emt 00:00:10]} 33. g3 {[%clk 00:17:13]} {[%emt 00:05:33]}
Qe2 {[%clk 00:01:19]} {[%emt 00:00:26]} 34. b4 {[%clk 00:13:40]} {[%emt
00:04:03]} Qxh2 {[%clk 00:01:16]} {[%emt 00:00:34]} 35. b5 {[%clk 00:13:41]}
{[%emt 00:00:28]} Qxg3 {[%clk 00:00:43]} {[%emt 00:01:03]} 36. b6 {[%clk
00:13:55]} {[%emt 00:00:16]} Qe1+ {[%clk 00:00:57]} {[%emt 00:00:16]} 37. Ka2
{[%clk 00:13:52]} {[%emt 00:00:32]} Qe2 {[%clk 00:00:32]} {[%emt 00:00:56]} 38.
b7 {[%clk 00:13:45]} {[%emt 00:00:36]} 1-0

[Event "Sverigemastarklassen 2025"]
[Site "Uppsala, Sweden"]
[Date "2025.06.29"]
[Round "2.5"]
[White "Seo, Jung Min"]
[Black "Pantzar, Milton"]
[Result "1/2-1/2"]
[TimeControl "90 min for 40 move + 30 min with an increment of 30 sec starting move 1"]
[WhiteTitle "IM"]
[BlackTitle "IM"]
[WhiteFideId "1734687"]
[BlackFideId "1721003"]
[WhiteElo "2472"]
[BlackElo "2450"]

1. e4 {[%clk 01:30:59]} e5 {[%clk 01:30:45]} {[%emt 00:00:15]} 2. Nf3 {[%clk
01:31:26]} {[%emt 00:00:03]} Nc6 {[%clk 01:31:05]} {[%emt 00:00:11]} 3. Bb5
{[%clk 01:31:54]} {[%emt 00:00:01]} Nf6 {[%clk 01:30:56]} {[%emt 00:00:38]} 4.
d3 {[%clk 01:31:49]} {[%emt 00:00:37]} d6 {[%clk 01:31:00]} {[%emt 00:00:26]} 5.
d4 {[%clk 01:26:48]} {[%emt 00:05:31]} exd4 {[%clk 01:26:25]} {[%emt 00:05:05]}
6. Nxd4 {[%clk 01:26:52]} {[%emt 00:00:26]} Bd7 {[%clk 01:26:10]} {[%emt
00:00:45]} 7. Nc3 {[%clk 01:25:10]} {[%emt 00:02:11]} Nxd4 {[%clk 01:19:20]}
{[%emt 00:07:21]} 8. Bxd7+ {[%clk 01:20:29]} {[%emt 00:05:10]} Qxd7 {[%clk
01:18:36]} {[%emt 00:01:14]} 9. Qxd4 {[%clk 01:20:48]} {[%emt 00:00:11]} Be7
{[%clk 01:15:50]} {[%emt 00:03:16]} 10. O-O {[%clk 01:20:09]} {[%emt 00:01:09]}
O-O {[%clk 01:15:16]} {[%emt 00:01:04]} 11. Bf4 {[%clk 01:10:34]} {[%emt
00:10:04]} Rfe8 {[%clk 01:09:39]} {[%emt 00:06:08]} 12. Rfe1 {[%clk 01:02:57]}
{[%emt 00:08:07]} a6 {[%clk 01:02:17]} {[%emt 00:07:53]} 13. Rad1 {[%clk
00:56:30]} {[%emt 00:06:56]} Rad8 {[%clk 01:00:03]} {[%emt 00:02:44]} 14. Nd5
{[%clk 00:47:10]} {[%emt 00:09:51]} Nxd5 {[%clk 00:58:41]} {[%emt 00:01:52]} 15.
Qxd5 {[%clk 00:47:34]} {[%emt 00:00:06]} Qc8 {[%clk 00:50:23]} {[%emt
00:08:47]} 16. c4 {[%clk 00:43:38]} {[%emt 00:04:26]} Bf6 {[%clk 00:49:00]}
{[%emt 00:01:53]} 17. b3 {[%clk 00:43:21]} {[%emt 00:00:47]} Re6 {[%clk
00:33:46]} {[%emt 00:15:44]} 18. f3 {[%clk 00:41:46]} {[%emt 00:02:05]} Rde8
{[%clk 00:33:07]} {[%emt 00:01:09]} 19. Qd2 {[%clk 00:40:59]} {[%emt 00:01:16]}
g6 {[%clk 00:26:23]} {[%emt 00:07:15]} 20. Qc2 {[%clk 00:37:45]} {[%emt
00:03:42]} Be5 {[%clk 00:16:43]} {[%emt 00:10:13]} 21. Bxe5 {[%clk 00:36:53]}
{[%emt 00:01:22]} Rxe5 {[%clk 00:17:06]} {[%emt 00:00:07]} 22. Rd5 {[%clk
00:36:08]} {[%emt 00:01:14]} f5 {[%clk 00:13:44]} {[%emt 00:03:53]} 23. Rxe5
{[%clk 00:36:32]} {[%emt 00:00:06]} Rxe5 {[%clk 00:14:08]} {[%emt 00:00:05]} 24.
f4 {[%clk 00:34:23]} {[%emt 00:02:39]} Re7 {[%clk 00:12:17]} {[%emt 00:02:21]}
25. c5 {[%clk 00:28:34]} {[%emt 00:06:20]} Qe6 {[%clk 00:09:17]} {[%emt
00:03:29]} 26. cxd6 {[%clk 00:26:26]} {[%emt 00:02:39]} cxd6 {[%clk 00:09:14]}
{[%emt 00:00:33]} 27. e5 {[%clk 00:26:45]} {[%emt 00:00:10]} dxe5 {[%clk
00:08:04]} {[%emt 00:01:41]} 28. Rxe5 {[%clk 00:25:40]} {[%emt 00:01:35]} Qb6+
{[%clk 00:08:15]} {[%emt 00:00:18]} 29. Qc5 {[%clk 00:25:53]} {[%emt 00:00:17]}
Qxc5+ {[%clk 00:08:31]} {[%emt 00:00:15]} 30. Rxc5 {[%clk 00:26:11]} {[%emt
00:00:12]} Re2 {[%clk 00:05:00]} {[%emt 00:04:00]} 31. Kf1 {[%clk 00:26:22]}
{[%emt 00:00:19]} Rxa2 {[%clk 00:04:45]} {[%emt 00:00:45]} 32. Rc8+ {[%clk
00:26:46]} {[%emt 00:00:06]} Kf7 {[%clk 00:04:33]} {[%emt 00:00:43]} 33. Rc7+
{[%clk 00:27:14]} {[%emt 00:00:02]} Ke6 {[%clk 00:04:24]} {[%emt 00:00:37]} 34.
Rxb7 {[%clk 00:27:41]} {[%emt 00:00:05]} h5 {[%clk 00:03:21]} {[%emt 00:01:33]}
35. Rb6+ {[%clk 00:27:17]} {[%emt 00:00:55]} Kf7 {[%clk 00:02:54]} {[%emt
00:00:57]} 36. h4 {[%clk 00:27:19]} {[%emt 00:00:24]} a5 {[%clk 00:02:42]}
{[%emt 00:00:45]} 37. Kg1 {[%clk 00:27:05]} {[%emt 00:00:43]} a4 {[%clk
00:02:03]} {[%emt 00:01:10]} 38. bxa4 {[%clk 00:27:31]} {[%emt 00:00:04]} Rxa4
{[%clk 00:02:28]} {[%emt 00:00:05]} 39. g3 {[%clk 00:27:58]} {[%emt 00:00:03]}
Ra2 {[%clk 00:02:51]} {[%emt 00:00:06]} 40. Rc6 {[%clk 00:28:23]} {[%emt
00:00:05]} Ra1+ {[%clk 00:03:15]} {[%emt 00:00:07]} 1/2-1/2

[ePGN "0.1;DGT LiveChess/2.2.7"]

[Event "Sverigemastarklassen 2025"]
[Site "Uppsala, Sweden"]
[Date "2025.06.28"]
[Round "1.1"]
[White "Falkevall, Axel"]
[Black "Blomqvist, Erik"]
[Result "1/2-1/2"]
[TimeControl "90 min for 40 move + 30 min with an increment of 30 sec starting move 1"]
[WhiteTitle "FM"]
[BlackTitle "GM"]
[WhiteFideId "1735560"]
[BlackFideId "1709437"]
[WhiteElo "2372"]
[BlackElo "2448"]

1. e4 {[%clk 01:30:54]} {[%emt 00:00:05]} e5 {[%clk 01:30:52]} {[%emt
00:00:08]} 2. Nf3 {[%clk 01:31:19]} {[%emt 00:00:05]} Nc6 {[%clk 01:31:16]}
{[%emt 00:00:07]} 3. Bc4 {[%clk 01:31:30]} {[%emt 00:00:18]} Nf6 {[%clk
01:31:24]} {[%emt 00:00:22]} 4. d4 {[%clk 01:31:11]} {[%emt 00:00:50]} exd4
{[%clk 01:31:18]} {[%emt 00:00:36]} 5. e5 {[%clk 01:30:50]} {[%emt 00:00:50]}
d5 {[%clk 01:31:24]} {[%emt 00:00:24]} 6. Bb5 {[%clk 01:30:27]} {[%emt
00:00:54]} Nd7 {[%clk 01:31:28]} {[%emt 00:00:26]} 7. O-O {[%clk 01:29:34]}
{[%emt 00:01:23]} Be7 {[%clk 01:30:58]} {[%emt 00:01:00]} 8. c3 {[%clk
01:28:02]} {[%emt 00:02:03]} dxc3 {[%clk 01:26:21]} {[%emt 00:05:07]} 9. Nxc3
{[%clk 01:27:51]} {[%emt 00:00:41]} O-O {[%clk 01:21:51]} {[%emt 00:05:00]} 10.
Qxd5 {[%clk 01:24:10]} {[%emt 00:04:11]} Nc5 {[%clk 01:13:53]} {[%emt
00:08:27]} 11. Qc4 {[%clk 01:19:43]} {[%emt 00:04:58]} Be6 {[%clk 01:05:55]}
{[%emt 00:08:27]} 12. Qf4 {[%clk 01:15:50]} {[%emt 00:04:23]} Nd3 {[%clk
01:01:05]} {[%emt 00:05:18]} 13. Qg3 {[%clk 01:09:42]} {[%emt 00:06:40]} Nxc1
{[%clk 00:58:32]} {[%emt 00:03:04]} 14. Raxc1 {[%clk 01:09:29]} {[%emt
00:00:43]} Nd4 {[%clk 00:57:08]} {[%emt 00:01:54]} 15. Rfd1 {[%clk 01:02:20]}
{[%emt 00:07:38]} Nxf3+ {[%clk 00:55:59]} {[%emt 00:01:40]} 16. Qxf3 {[%clk
01:01:52]} {[%emt 00:00:58]} Qc8 {[%clk 00:44:53]} {[%emt 00:11:35]} 17. Nd5
{[%clk 00:50:49]} {[%emt 00:11:33]} Bg5 {[%clk 00:35:19]} {[%emt 00:10:03]} 18.
Qg3 {[%clk 00:40:31]} {[%emt 00:10:50]} Bxd5 {[%clk 00:34:17]} {[%emt
00:01:32]} 19. Qxg5 {[%clk 00:40:46]} {[%emt 00:00:15]} Rd8 {[%clk 00:32:17]}
{[%emt 00:02:29]} 20. Rd3 {[%clk 00:32:49]} {[%emt 00:08:27]} h6 {[%clk
00:29:17]} {[%emt 00:03:30]} 21. Qd2 {[%clk 00:18:01]} {[%emt 00:15:18]} c6
{[%clk 00:16:17]} {[%emt 00:13:30]} 22. Bc4 {[%clk 00:17:21]} {[%emt 00:01:10]}
Bxc4 {[%clk 00:16:32]} {[%emt 00:00:15]} 23. Rxc4 {[%clk 00:17:42]} {[%emt
00:00:09]} Rxd3 {[%clk 00:16:42]} {[%emt 00:00:21]} 24. Qxd3 {[%clk 00:18:07]}
{[%emt 00:00:05]} Qc7 {[%clk 00:15:27]} {[%emt 00:01:45]} 25. Qe2 {[%clk
00:11:38]} {[%emt 00:06:58]} Rd8 {[%clk 00:14:50]} {[%emt 00:01:07]} 26. h3
{[%clk 00:11:21]} {[%emt 00:00:47]} Qd7 {[%clk 00:11:49]} {[%emt 00:03:31]} 27.
Re4 {[%clk 00:09:41]} {[%emt 00:02:10]} Kf8 {[%clk 00:09:35]} {[%emt 00:02:44]}
28. Qe3 {[%clk 00:07:03]} {[%emt 00:03:08]} Qd1+ {[%clk 00:04:56]} {[%emt
00:05:09]} 29. Kh2 {[%clk 00:07:27]} {[%emt 00:00:06]} Qd3 {[%clk 00:05:05]}
{[%emt 00:00:22]} 30. Qc5+ {[%clk 00:07:06]} {[%emt 00:00:51]} Kg8 {[%clk
00:05:03]} {[%emt 00:00:32]} 31. Rf4 {[%clk 00:03:43]} {[%emt 00:03:52]} Qd2
{[%clk 00:04:12]} {[%emt 00:01:21]} 32. g3 {[%clk 00:03:35]} {[%emt 00:00:38]}
Rd7 {[%clk 00:00:44]} {[%emt 00:03:59]} 33. Qxa7 {[%clk 00:01:12]} {[%emt
00:02:52]} Qxb2 {[%clk 00:00:52]} {[%emt 00:00:22]} 34. Qb8+ {[%clk 00:01:27]}
{[%emt 00:00:15]} Kh7 {[%clk 00:01:19]} {[%emt 00:00:04]} 35. Qe8 {[%clk
00:00:55]} {[%emt 00:01:02]} Rd2 {[%clk 00:00:45]} {[%emt 00:01:03]} 36. Qxf7
{[%clk 00:01:05]} {[%emt 00:00:20]} Qxe5 {[%clk 00:01:06]} {[%emt 00:00:10]} 37.
Qxb7 {[%clk 00:00:51]} {[%emt 00:00:44]} Qb2 {[%clk 00:00:42]} {[%emt
00:00:54]} 38. Qxb2 {[%clk 00:00:46]} {[%emt 00:00:35]} Rxb2 {[%clk 00:01:08]}
{[%emt 00:00:04]} 39. a4 {[%clk 00:01:01]} {[%emt 00:00:14]} c5 {[%clk
00:01:18]} {[%emt 00:00:21]} 40. Kg2 {[%clk 00:01:02]} {[%emt 00:00:29]} Rb4
{[%clk 00:00:33]} {[%emt 00:01:15]} 41. Rxb4 {[%clk 00:27:30]} {[%emt
00:04:01]} cxb4 {[%clk 00:30:55]} {[%emt 00:00:09]} 42. a5 {[%clk 00:27:50]}
{[%emt 00:00:10]} b3 {[%clk 00:31:22]} {[%emt 00:00:03]} 43. a6 {[%clk
00:28:17]} {[%emt 00:00:02]} b2 {[%clk 00:31:49]} {[%emt 00:00:04]} 44. a7
{[%clk 00:28:42]} {[%emt 00:00:05]} b1=Q {[%clk 00:32:14]} {[%emt 00:00:04]} 45.
a8=Q {[%clk 00:29:07]} {[%emt 00:00:05]} h5 {[%clk 00:31:37]} {[%emt 00:01:07]}
46. Qd5 {[%clk 00:28:48]} {[%emt 00:00:48]} g6 {[%clk 00:29:14]} {[%emt
00:02:54]} 47. Qf7+ {[%clk 00:27:32]} {[%emt 00:01:46]} Kh8 {[%clk 00:29:35]}
{[%emt 00:00:09]} 48. h4 {[%clk 00:27:28]} {[%emt 00:00:33]} Qe4+ {[%clk
00:29:04]} {[%emt 00:01:01]} 49. Qf3 {[%clk 00:26:55]} {[%emt 00:01:01]} Qe7
{[%clk 00:29:02]} {[%emt 00:00:33]} 50. Qc6 {[%clk 00:26:33]} {[%emt 00:00:53]}
Kh7 {[%clk 00:29:07]} {[%emt 00:00:26]} 51. Qd5 {[%clk 00:26:45]} {[%emt
00:00:18]} Kg7 {[%clk 00:29:04]} {[%emt 00:00:32]} 52. Kf3 {[%clk 00:26:14]}
{[%emt 00:01:02]} Qf6+ {[%clk 00:26:45]} {[%emt 00:02:49]} 53. Ke3 {[%clk
00:25:33]} {[%emt 00:01:11]} Qc3+ {[%clk 00:26:15]} {[%emt 00:01:00]} 54. Qd3
{[%clk 00:25:48]} {[%emt 00:00:14]} Qe1+ {[%clk 00:26:13]} {[%emt 00:00:32]} 55.
Qe2 {[%clk 00:25:47]} {[%emt 00:00:31]} Qc3+ {[%clk 00:25:19]} {[%emt
00:01:24]} 56. Qd3 {[%clk 00:25:48]} {[%emt 00:00:29]} Qe1+ {[%clk 00:25:43]}
{[%emt 00:00:07]} 57. Qe2 {[%clk 00:25:43]} {[%emt 00:00:35]} 1/2-1/2

[Event "Sverigemastarklassen 2025"]
[Site "Uppsala, Sweden"]
[Date "2025.06.28"]
[Round "1.2"]
[White "Sorensen, Hampus"]
[Black "Storme, Isak"]
[Result "1-0"]
[TimeControl "90 min for 40 move + 30 min with an increment of 30 sec starting move 1"]
[WhiteTitle "IM"]
[BlackTitle "IM"]
[WhiteFideId "8703884"]
[BlackFideId "1728113"]
[WhiteElo "2432"]
[BlackElo "2466"]

1. d4 {[%clk 01:30:27]} {[%emt 00:00:32]} d5 {[%clk 01:30:53]} {[%emt
00:00:07]} 2. c4 {[%clk 01:30:42]} {[%emt 00:00:15]} e6 {[%clk 01:31:17]}
{[%emt 00:00:06]} 3. Nc3 {[%clk 01:30:22]} {[%emt 00:00:50]} Nf6 {[%clk
01:31:36]} {[%emt 00:00:11]} 4. Bg5 {[%clk 01:29:43]} {[%emt 00:01:09]} Be7
{[%clk 01:31:10]} {[%emt 00:00:56]} 5. e3 {[%clk 01:29:44]} {[%emt 00:00:29]}
h6 {[%clk 01:31:17]} {[%emt 00:00:23]} 6. Bh4 {[%clk 01:29:52]} {[%emt
00:00:22]} O-O {[%clk 01:30:43]} {[%emt 00:01:04]} 7. Qc2 {[%clk 01:29:55]}
{[%emt 00:00:27]} b6 {[%clk 01:24:44]} {[%emt 00:06:29]} 8. Nf3 {[%clk
01:29:44]} {[%emt 00:00:41]} Bb7 {[%clk 01:24:27]} {[%emt 00:00:47]} 9. Bxf6
{[%clk 01:29:41]} {[%emt 00:00:33]} Bxf6 {[%clk 01:24:49]} {[%emt 00:00:09]} 10.
cxd5 {[%clk 01:30:04]} {[%emt 00:00:07]} exd5 {[%clk 01:24:51]} {[%emt
00:00:28]} 11. Rd1 {[%clk 01:30:21]} {[%emt 00:00:12]} Nd7 {[%clk 01:11:15]}
{[%emt 00:14:05]} 12. g3 {[%clk 01:28:21]} {[%emt 00:02:31]} c6 {[%clk
01:07:07]} {[%emt 00:04:38]} 13. Bg2 {[%clk 01:25:54]} {[%emt 00:02:58]} b5
{[%clk 01:00:34]} {[%emt 00:07:03]} 14. O-O {[%clk 01:24:30]} {[%emt 00:01:54]}
Rc8 {[%clk 00:52:51]} {[%emt 00:08:13]} 15. e4 {[%clk 01:03:05]} {[%emt
00:21:55]} b4 {[%clk 00:48:24]} {[%emt 00:04:57]} 16. e5 {[%clk 00:55:53]}
{[%emt 00:07:42]} Be7 {[%clk 00:45:47]} {[%emt 00:03:06]} 17. Ne2 {[%clk
00:53:15]} {[%emt 00:03:09]} c5 {[%clk 00:43:33]} {[%emt 00:02:43]} 18. Nf4
{[%clk 00:51:51]} {[%emt 00:01:54]} cxd4 {[%clk 00:41:48]} {[%emt 00:02:16]} 19.
Qf5 {[%clk 00:50:20]} {[%emt 00:02:00]} Nc5 {[%clk 00:36:10]} {[%emt 00:06:08]}
20. Nxd4 {[%clk 00:46:06]} {[%emt 00:04:44]} Bg5 {[%clk 00:33:09]} {[%emt
00:03:31]} 21. Nde2 {[%clk 00:41:10]} {[%emt 00:05:27]} Ba6 {[%clk 00:23:23]}
{[%emt 00:10:15]} 22. Rfe1 {[%clk 00:29:58]} {[%emt 00:11:41]} Bxf4 {[%clk
00:09:43]} {[%emt 00:14:11]} 23. Nxf4 {[%clk 00:26:40]} {[%emt 00:03:47]} d4
{[%clk 00:10:08]} {[%emt 00:00:06]} 24. Nd5 {[%clk 00:20:28]} {[%emt 00:06:42]}
d3 {[%clk 00:08:00]} {[%emt 00:02:38]} 25. Nxb4 {[%clk 00:16:17]} {[%emt
00:04:42]} d2 {[%clk 00:04:19]} {[%emt 00:04:10]} 26. Re3 {[%clk 00:16:38]}
{[%emt 00:00:09]} Bb7 {[%clk 00:03:21]} {[%emt 00:01:29]} 27. Bxb7 {[%clk
00:09:40]} {[%emt 00:07:28]} Nxb7 {[%clk 00:03:49]} {[%emt 00:00:01]} 28. Rc3
{[%clk 00:06:03]} {[%emt 00:04:06]} Rxc3 {[%clk 00:04:10]} {[%emt 00:00:09]} 29.
bxc3 {[%clk 00:06:32]} {[%emt 00:00:01]} a5 {[%clk 00:03:53]} {[%emt 00:00:47]}
30. Nc6 {[%clk 00:03:56]} {[%emt 00:03:06]} Qc7 {[%clk 00:04:13]} {[%emt
00:00:10]} 31. Qf3 {[%clk 00:01:36]} {[%emt 00:02:50]} Nd8 {[%clk 00:03:27]}
{[%emt 00:01:15]} 32. Nd4 {[%clk 00:01:36]} {[%emt 00:00:31]} Qxe5 {[%clk
00:03:50]} {[%emt 00:00:07]} 33. Qe2 {[%clk 00:00:57]} {[%emt 00:01:08]} Qc5
{[%clk 00:02:00]} {[%emt 00:02:20]} 34. Qxd2 {[%clk 00:01:20]} {[%emt
00:00:07]} Nb7 {[%clk 00:00:49]} {[%emt 00:01:41]} 35. Nb3 {[%clk 00:01:18]}
{[%emt 00:00:32]} Qc7 {[%clk 00:01:02]} {[%emt 00:00:17]} 36. Qd7 {[%clk
00:00:49]} {[%emt 00:00:58]} Qb6 {[%clk 00:00:56]} {[%emt 00:00:37]} 37. Qd4
{[%clk 00:00:51]} {[%emt 00:00:28]} Qc6 {[%clk 00:00:51]} {[%emt 00:00:35]} 38.
Qd5 {[%clk 00:01:00]} {[%emt 00:00:21]} Qc7 {[%clk 00:01:11]} {[%emt 00:00:10]}
39. Rd4 {[%clk 00:00:58]} {[%emt 00:00:32]} Rc8 {[%clk 00:00:54]} {[%emt
00:00:47]} 40. Qb5 {[%clk 00:00:38]} {[%emt 00:00:50]} Nd6 {[%clk 00:00:40]}
{[%emt 00:00:43]} 41. Qd3 {[%clk 00:21:45]} {[%emt 00:09:24]} Ne8 {[%clk
00:22:08]} {[%emt 00:09:03]} 42. c4 {[%clk 00:20:52]} {[%emt 00:01:23]} a4
{[%clk 00:22:25]} {[%emt 00:00:13]} 43. Nd2 {[%clk 00:21:07]} {[%emt 00:00:14]}
Nf6 {[%clk 00:22:43]} {[%emt 00:00:12]} 44. Ne4 {[%clk 00:18:55]} {[%emt
00:02:42]} Nxe4 {[%clk 00:22:57]} {[%emt 00:00:16]} 45. Qxe4 {[%clk 00:18:45]}
{[%emt 00:00:40]} g6 {[%clk 00:22:52]} {[%emt 00:00:35]} 46. Qd5 {[%clk
00:17:58]} {[%emt 00:01:17]} Qe7 {[%clk 00:19:28]} {[%emt 00:03:53]} 47. Re4
{[%clk 00:14:42]} {[%emt 00:03:47]} Qc7 {[%clk 00:19:36]} {[%emt 00:00:23]} 48.
Qb5 {[%clk 00:11:28]} {[%emt 00:03:44]} a3 {[%clk 00:13:39]} {[%emt 00:06:26]}
49. Re8+ {[%clk 00:08:05]} {[%emt 00:03:53]} Rxe8 {[%clk 00:14:04]} {[%emt
00:00:05]} 50. Qxe8+ {[%clk 00:08:34]} {[%emt 00:00:02]} Kg7 {[%clk 00:13:44]}
{[%emt 00:00:49]} 51. Qe3 {[%clk 00:06:59]} {[%emt 00:02:05]} Qxc4 {[%clk
00:11:41]} {[%emt 00:02:33]} 52. Qxa3 {[%clk 00:07:23]} {[%emt 00:00:06]} h5
{[%clk 00:11:45]} {[%emt 00:00:25]} 53. h4 {[%clk 00:07:10]} {[%emt 00:00:43]}
Qe4 {[%clk 00:09:21]} {[%emt 00:02:54]} 54. Qc1 {[%clk 00:05:46]} {[%emt
00:01:53]} Kg8 {[%clk 00:09:13]} {[%emt 00:00:40]} 55. Qd1 {[%clk 00:05:18]}
{[%emt 00:00:58]} Qc4 {[%clk 00:08:21]} {[%emt 00:01:22]} 56. a4 {[%clk
00:04:55]} {[%emt 00:00:54]} Qc3 {[%clk 00:08:43]} {[%emt 00:00:07]} 57. Qd8+
{[%clk 00:04:29]} {[%emt 00:00:56]} Kh7 {[%clk 00:08:48]} {[%emt 00:00:24]} 58.
a5 {[%clk 00:04:45]} {[%emt 00:00:15]} Qe1+ {[%clk 00:08:51]} {[%emt 00:00:27]}
59. Kg2 {[%clk 00:05:13]} {[%emt 00:00:02]} Qe4+ {[%clk 00:09:04]} {[%emt
00:00:16]} 60. Kh2 {[%clk 00:05:33]} {[%emt 00:00:11]} Qf3 {[%clk 00:06:37]}
{[%emt 00:02:58]} 61. Qd4 {[%clk 00:04:58]} {[%emt 00:01:04]} Qe2 {[%clk
00:06:15]} {[%emt 00:00:52]} 62. Qb6 {[%clk 00:04:46]} {[%emt 00:00:42]} Qf3
{[%clk 00:01:55]} {[%emt 00:04:50]} 63. a6 {[%clk 00:05:04]} {[%emt 00:00:12]}
g5 {[%clk 00:00:51]} {[%emt 00:01:34]} 64. Qe3 {[%clk 00:04:04]} {[%emt
00:01:30]} Qc6 {[%clk 00:00:46]} {[%emt 00:00:35]} 65. Qd3+ {[%clk 00:04:19]}
{[%emt 00:00:15]} Kg7 {[%clk 00:00:42]} {[%emt 00:00:34]} 66. hxg5 {[%clk
00:04:02]} {[%emt 00:00:47]} Qc5 {[%clk 00:00:57]} {[%emt 00:00:15]} 67. Qe3
{[%clk 00:04:00]} {[%emt 00:00:32]} Qc6 {[%clk 00:01:01]} {[%emt 00:00:26]} 68.
a7 {[%clk 00:02:20]} {[%emt 00:02:10]} h4 {[%clk 00:01:01]} {[%emt 00:00:30]}
69. Qd4+ {[%clk 00:01:58]} {[%emt 00:00:52]} Kh7 {[%clk 00:00:51]} {[%emt
00:00:40]} 70. Qxh4+ {[%clk 00:02:22]} {[%emt 00:00:06]} Kg7 {[%clk 00:01:12]}
{[%emt 00:00:08]} 71. Qh6+ {[%clk 00:02:47]} {[%emt 00:00:06]} 1-0